Body Name,Body,Service Level,Expense Type,Expense Code,Narrative,Date,Transaction Number,Amount,Capital and Revenue,Supplier Name,Supplier ID
South Ribble Council,http://statistics.data.gov.uk/doc/local-authority/30UN,Housing,Cap Grant- Improve Grants,C570,DFG WORK AT ADDRESS REDACTED AGREED TO PAY 50 COST - 1460.00,11/04/2018,0000439090,"1,460.00",Revenue,ABBI PROPERTY SERVICES LTD,131357
South Ribble Council,http://statistics.data.gov.uk/doc/local-authority/30UN,Housing,Cap Grant- Improve Grants,C570,DFG WORK AT ADDRESS REDACTED AGREED TO PAY 50 COST - 1300.00,11/04/2018,0000439091,"1,300.00",Revenue,ABBI PROPERTY SERVICES LTD,131357
South Ribble Council,http://statistics.data.gov.uk/doc/local-authority/30UN,Housing,Cap Grant- Improve Grants,C570,DFG WORK AT ADDRESS REDACTED AGREED TO PAY 50%COST - 1575.00,13/04/2018,0000439114,"1,575.00",Revenue,ABBI PROPERTY SERVICES LTD,131357
South Ribble Council,http://statistics.data.gov.uk/doc/local-authority/30UN,Housing,Cap Grant- Improve Grants,C570,DFG WORK AT ADDRESS REDACTED AGREED TO PAY 50%COST - 1300.00,18/04/2018,0000439213,"1,300.00",Revenue,ABBI PROPERTY SERVICES LTD,131357
South Ribble Council,http://statistics.data.gov.uk/doc/local-authority/30UN,Housing,Cap Expend Other,C750,DFG WORKS TO BATHROOM ATADDRESS REDACTED AS PER QUOTE SUPPLIED BY NEW PROGRESS 50% OF COST,18/04/2018,0000439214,"1,300.00",Revenue,ABBI PROPERTY SERVICES LTD,131357
South Ribble Council,http://statistics.data.gov.uk/doc/local-authority/30UN,HR & Communications,Training Expense-Course Fees,1402,ABC FOOD LAW ONLINE PLUS - SUBSCRIBERS: NAMES REDACTED,13/04/2018,0000439015,"1,950.00",Revenue,ABC FOOD LAW,132538
South Ribble Council,http://statistics.data.gov.uk/doc/local-authority/30UN,Information Services,Peripherals,4244,5 x BT Converse 2300 Black @ 44.90 each and 5 x BT Converse 2200 Black @ 34.30 each,18/04/2018,0000439188,396.00,Revenue,ACS SYSTEMS UK LTD,00070166
South Ribble Council,http://statistics.data.gov.uk/doc/local-authority/30UN,Regeneration,Other Misc,4861,"Longton Live lime green silicone wristbands, 1 side.  Debossed and paint filled white.  Including artwork.  Qty 3000",11/04/2018,0000438844,956.00,Revenue,AINSWORTH & PARKINSON,130107
South Ribble Council,http://statistics.data.gov.uk/doc/local-authority/30UN,Regeneration,Other Misc,4861,"Penwortham Live yellow Silicone wristbands, 1 side, debossed and paint filled white.  Including artwork. Qty 3000",11/04/2018,0000438845,956.00,Revenue,AINSWORTH & PARKINSON,130107
South Ribble Council,http://statistics.data.gov.uk/doc/local-authority/30UN,Revenues Plus,Professional Fees,4520,Council Reduction Scheme Consultancy 2018 and 2018,13/04/2018,0000439136,"1,000.00",Revenue,AIREY CONSULTANCY LTD T/A ACS LTD,00089212
South Ribble Council,http://statistics.data.gov.uk/doc/local-authority/30UN,Housing,Cap Grant- Improve Grants,C570,ARCHITECT FEES FOR PLANS DRAWN FOR NAME REDACTED - ADDRESS REDACTED COST 1080.00 INC VAT,25/04/2018,0000439293,540.00,Revenue,Aldrock Surveyors Ltd,132469
South Ribble Council,http://statistics.data.gov.uk/doc/local-authority/30UN,Area 3 - Parks/Leyland East West,Grounds Maint Cntrctrs Chgs,4657,"Deposit for Alitex Green House fittings, Worden Park Display House.",11/04/2018,0000438863,"2,607.50",Revenue,Alitex Ltd,132080
South Ribble Council,http://statistics.data.gov.uk/doc/local-authority/30UN,Revenues Plus,Financial,4811,ret chqs,11/04/2018,0000438899,8.40,Revenue,ALLPAY LTD,00122276
South Ribble Council,http://statistics.data.gov.uk/doc/local-authority/30UN,Revenues Plus,Financial,4811,PO trans,11/04/2018,0000438899,759.51,Revenue,ALLPAY LTD,00122276
South Ribble Council,http://statistics.data.gov.uk/doc/local-authority/30UN,Revenues Plus,Financial,4811,paypoint trans,11/04/2018,0000438899,137.06,Revenue,ALLPAY LTD,00122276
South Ribble Council,http://statistics.data.gov.uk/doc/local-authority/30UN,Revenues Plus,Financial,4811,webconn,11/04/2018,0000438899,46.56,Revenue,ALLPAY LTD,00122276
South Ribble Council,http://statistics.data.gov.uk/doc/local-authority/30UN,Housing,Cap Grant- Improve Grants,C570,DFG ADAPTATION WORK AT ADDRESS REDACTED 50% YOUR TOTAL QUOTE OF 7632.43 GRANT AMOUNT APPROVED,06/04/2018,0000438833,"3,816.22",Revenue,APG DOMESTIC SERVICES,00061463
South Ribble Council,http://statistics.data.gov.uk/doc/local-authority/30UN,HR & Communications,Training Expense-Course Fees,1403,NAME REDACTED TO ATTEND A 4 DAY ELECTORAL ADMINISTRATION COURSE (AEA CERT) 18-21 JUNE 2018,25/04/2018,0000439363,"1,089.00",Revenue,ASSOC OF ELECTORAL ADMINISTRATORS LTD,00014449
South Ribble Council,http://statistics.data.gov.uk/doc/local-authority/30UN,Property Services,Fixtures and Fittings,2611,Please supply 2 x Page 620  item  1620027  Maya Aluminium Whiteboard  @ 91.84 each  2 x Page 638  item  9200030 Classic,06/04/2018,0000438946,"1,568.52",Revenue,BANNER GROUP LTD,00081485
South Ribble Council,http://statistics.data.gov.uk/doc/local-authority/30UN,Area 3 - Parks/Leyland East West,Other Misc,4861,Various plants for Walton Park,20/04/2018,0000439215,250.00,Revenue,BANNISTER HALL LANDSCAPE SUPPLIES,00117786
South Ribble Council,http://statistics.data.gov.uk/doc/local-authority/30UN,Regeneration,Other Misc,4851,User & Business Surveys � Penwortham City Deal,18/04/2018,0000439150,"3,200.00",Revenue,Barrons,132059
South Ribble Council,http://statistics.data.gov.uk/doc/local-authority/30UN,Property Services,Rep & Maint Premises,2020,"Attend Civic Centre, the Paddock Room, replace the lights to L.E.D and remove old lights see NAME REDACTED ",25/04/2018,0000439211,320.00,Revenue,BELEC ELECTRICAL LTD,130290
South Ribble Council,http://statistics.data.gov.uk/doc/local-authority/30UN,Development Enterprise & Comm Mgnt,Professional Fees,4510,Booking  2 bikeability training courses at the national cycling centre Manchester 22- 25th march,11/04/2018,0000438895,900.00,Revenue,BRITISH CYCLING,130859
South Ribble Council,http://statistics.data.gov.uk/doc/local-authority/30UN,Property Services,Rep & Maint Premises,2020,"Annual contract 2018 / 2019 for care plan 3 at Kingsfold Community Centre, Kingsfold Drive, Penwortham",18/04/2018,0000439161,640.20,Revenue,BRITISH GAS SERVICES (COMMERCIAL) LTD,00016214
South Ribble Council,http://statistics.data.gov.uk/doc/local-authority/30UN,Property Services,Rep & Maint Premises,2020,"Annual contract 2018 / 2019 for care plan 3 at the Civic Centre, Leyland",18/04/2018,0000439162,"4,841.45",Revenue,BRITISH GAS SERVICES (COMMERCIAL) LTD,00016214
South Ribble Council,http://statistics.data.gov.uk/doc/local-authority/30UN,Property Services,Rep & Maint Premises,2020,"Annual contract 2018 / 2019 for care plan 3 at Moss Side Depot, 81 Bison Place, Leyland",18/04/2018,0000439163,"1,773.58",Revenue,BRITISH GAS SERVICES (COMMERCIAL) LTD,00016214
South Ribble Council,http://statistics.data.gov.uk/doc/local-authority/30UN,Property Services,Rep & Maint Premises,2020,Annual contract 2018 / 2019 for care plan 3 at Leyland Market,18/04/2018,0000439164,"1,564.71",Revenue,BRITISH GAS SERVICES (COMMERCIAL) LTD,00016214
South Ribble Council,http://statistics.data.gov.uk/doc/local-authority/30UN,Property Services,Rep & Maint Premises,2020,"Annual contract 2018 / 2019 for care plan 3 at unit 81A Bison Place Moss Side, Leyland",18/04/2018,0000439165,"1,190.69",Revenue,BRITISH GAS SERVICES (COMMERCIAL) LTD,00016214
South Ribble Council,http://statistics.data.gov.uk/doc/local-authority/30UN,Property Services,Operational Furniture & Equip,4013,"Annual contract 2018 / 2019 for care plan 1 for the catering equipment at the Civic Centre, Leyland",18/04/2018,0000439166,647.69,Revenue,BRITISH GAS SERVICES (COMMERCIAL) LTD,00016214
South Ribble Council,http://statistics.data.gov.uk/doc/local-authority/30UN,Property Services,Rep & Maint Premises,2020,"Annual contract 2018/ 2019 for care plan 3 at Holland House farm changing pavilion, Walton Le Dale",18/04/2018,0000439167,780.45,Revenue,BRITISH GAS SERVICES (COMMERCIAL) LTD,00016214
South Ribble Council,http://statistics.data.gov.uk/doc/local-authority/30UN,Property Services,Rep & Maint Premises,2020,"Annual contract 2018 / 2019 for care plan 3 at The Museum, Church Road, Leyland",18/04/2018,0000439168,329.56,Revenue,BRITISH GAS SERVICES (COMMERCIAL) LTD,00016214
South Ribble Council,http://statistics.data.gov.uk/doc/local-authority/30UN,Property Services,Rep & Maint Premises,2020,"Annual contract 2018 / 2019 for care plan 3 at Citizens advice bureau, 78 Towngate, Leyland",18/04/2018,0000439169,300.32,Revenue,BRITISH GAS SERVICES (COMMERCIAL) LTD,00016214
South Ribble Council,http://statistics.data.gov.uk/doc/local-authority/30UN,Property Services,Rep & Maint Premises,2020,"Annual contract 2018 / 2019 for care plan 3 at North Lodge, Worden Park",18/04/2018,0000439170,318.59,Revenue,BRITISH GAS SERVICES (COMMERCIAL) LTD,00016214
South Ribble Council,http://statistics.data.gov.uk/doc/local-authority/30UN,Property Services,Rep & Maint Premises,2020,"Annual contract 2018 / 2019 for care plan 3 at Carr Street Community Centre, Bamber Bridge",18/04/2018,0000439171,318.59,Revenue,BRITISH GAS SERVICES (COMMERCIAL) LTD,00016214
South Ribble Council,http://statistics.data.gov.uk/doc/local-authority/30UN,Property Services,Rep & Maint Premises,2020,"Annual contract 2018 / 2019 for care plan 3 at Moss Side Community Centre, Dunkirk Lane, Leyland",18/04/2018,0000439172,318.59,Revenue,BRITISH GAS SERVICES (COMMERCIAL) LTD,00016214
South Ribble Council,http://statistics.data.gov.uk/doc/local-authority/30UN,Revenues Plus,Professional Fees,4520,Webinar - subsidy,11/04/2018,0000439033,400.00,Revenue,CAPITA BUSINESS SERVICES LTD,00122179
South Ribble Council,http://statistics.data.gov.uk/doc/local-authority/30UN,Information Services,Peripherals,4248,Remote Access Maintenance for period 01/04/18 - 31/03/19,11/04/2018,0000439038,"2,125.84",Revenue,CAPITA BUSINESS SERVICES LTD,00122179
South Ribble Council,http://statistics.data.gov.uk/doc/local-authority/30UN,Information Services,Peripherals,4248,"Revenues and Benefits annual maintenance for period 01/04/18 - 31/03/19, as peer quote",11/04/2018,0000439046,"54,220.06",Revenue,CAPITA BUSINESS SERVICES LTD,00122179
South Ribble Council,http://statistics.data.gov.uk/doc/local-authority/30UN,Information Services,Peripherals,4248,Revenues & Benefits Development Fund 01/04/18 - 31/03/19,11/04/2018,0000439051,"9,193.00",Revenue,CAPITA BUSINESS SERVICES LTD,00122179
South Ribble Council,http://statistics.data.gov.uk/doc/local-authority/30UN,Regeneration,Professional Fees,4510,Multi disciplinary services for West Paddock Masterplan,20/04/2018,0000439236,"19,534.27",Revenue,CAPITA PROPERTY AND INFRASTRUCTURE LTD,131347
South Ribble Council,http://statistics.data.gov.uk/doc/local-authority/30UN,Regeneration,Other Misc,4861,Building and installation of Notice Boards in Lostock Hall,27/04/2018,0000439232,760.00,Revenue,Carma Joinery Services,132180
South Ribble Council,http://statistics.data.gov.uk/doc/local-authority/30UN,Environmental Health,Professional Fees,4520,50% costs for shared CBC/SRBC training session held at CBC Town Hall on 9 March 2018 - delivered by NAME REDACTED,06/04/2018,0000438941,635.00,Revenue,CHORLEY BOROUGH COUNCIL,00017352
South Ribble Council,http://statistics.data.gov.uk/doc/local-authority/30UN,Shared Financial Services,Balance Sheet,0030,Part refund of CBC Invoice 4041931,13/04/2018,0000439032,197.42,Revenue,CHORLEY BOROUGH COUNCIL,00017352
South Ribble Council,http://statistics.data.gov.uk/doc/local-authority/30UN,Shared Financial Services,Balance Sheet,0030,Part refund of CBC Invoice 4042137,13/04/2018,0000439032,438.72,Revenue,CHORLEY BOROUGH COUNCIL,00017352
South Ribble Council,http://statistics.data.gov.uk/doc/local-authority/30UN,Shared Financial Services,Capital Expenditure,C234,Delivery of software and services from Civica. To include: Purchase card module implementation of the fixed assets module,13/04/2018,0000439103,"11,154.80",Revenue,CHORLEY BOROUGH COUNCIL,00017352
South Ribble Council,http://statistics.data.gov.uk/doc/local-authority/30UN,Shared Financial Services,External Contractors Charges,4570,Provision of Shared Financial Services for the period 1st April 2017 to 31st March 2018,13/04/2018,0000439104,"4,128.58",Revenue,CHORLEY BOROUGH COUNCIL,00017352
South Ribble Council,http://statistics.data.gov.uk/doc/local-authority/30UN,Homelessness,Contributions,4730,block book room 20 to end of financial year 2017/18 Cotswold Supported housing,18/04/2018,0000439174,"1,093.68",Revenue,CHORLEY BOROUGH COUNCIL,00017352
South Ribble Council,http://statistics.data.gov.uk/doc/local-authority/30UN,Property Services,Rep & Maint Premises,2020,"Annual contract 2018 / 2019 for the maintenance of the intruder alarm at the Museum, Church Road, Leyland - contract number",18/04/2018,0000439127,815.55,Revenue,CHUBB LTD,00090625
South Ribble Council,http://statistics.data.gov.uk/doc/local-authority/30UN,Property Services,Rep & Maint Fixed Plant,2035,Annual contract 2018 / 2019 for the maintenance of the intruder alarms at Worden Arts Centre - contract number 1076780,18/04/2018,0000439128,943.94,Revenue,CHUBB LTD,00090625
South Ribble Council,http://statistics.data.gov.uk/doc/local-authority/30UN,Area 2 - Waste Transport/Eastern & Central Teams,Materials General,4040,1 VALVE PJ62 UCL JFC10321,20/04/2018,0000439189,277.30,Revenue,CICELEY COMMERCIALS LTD,00059381
South Ribble Council,http://statistics.data.gov.uk/doc/local-authority/30UN,Information Services,Peripherals,4248,Additional charge to SRBC for exceeding Data Storage and Recovery quota for period 01/01/18 - 31/03/18,20/04/2018,0000439264,531.90,Revenue,CIVICA UK LTD,00102717
South Ribble Council,http://statistics.data.gov.uk/doc/local-authority/30UN,Housing,Cap Grant- Improve Grants,C570,DFG WORKS ATADDRESS REDACRED TOTAL COST -  18140.00 GRANT APPROVED - 16619.00 CUSTOMER CONTRIB,20/04/2018,0000439230,"5,000.00",Revenue,Cornerstone Building & Maintenance Ltd,131383
South Ribble Council,http://statistics.data.gov.uk/doc/local-authority/30UN,Housing,Cap Grant- Improve Grants,C570,"DFG WORKS ATADDRESS REDACTED COST 30,000.00",20/04/2018,0000439231,"8,650.00",Revenue,Cornerstone Building & Maintenance Ltd,131383
South Ribble Council,http://statistics.data.gov.uk/doc/local-authority/30UN,Revenues Plus,Postage,4291,Postage March,11/04/2018,0000438892,529.64,Revenue,CRITIQOM,131053
South Ribble Council,http://statistics.data.gov.uk/doc/local-authority/30UN,Revenues Plus,Postage,4291,Postage March,11/04/2018,0000439035,374.85,Revenue,CRITIQOM,131053
South Ribble Council,http://statistics.data.gov.uk/doc/local-authority/30UN,Revenues Plus,Postage,4291,Postage for April - June 2018,18/04/2018,0000439204,440.99,Revenue,CRITIQOM,131053
South Ribble Council,http://statistics.data.gov.uk/doc/local-authority/30UN,Revenues Plus,Postage,4291,Postage for April - June 2018,25/04/2018,0000439340,"1,228.39",Revenue,CRITIQOM,131053
South Ribble Council,http://statistics.data.gov.uk/doc/local-authority/30UN,Revenues Plus,Stationery,4130,Relates to EOY for March 2018,25/04/2018,0000439374,400.00,Revenue,CRITIQOM,131053
South Ribble Council,http://statistics.data.gov.uk/doc/local-authority/30UN,Shared Assurance Services,Balance Sheet,0008,refund paid to SRBC in error,11/04/2018,0000439071,500.00,Revenue,NAME REDACTED,132539
South Ribble Council,http://statistics.data.gov.uk/doc/local-authority/30UN,Neighbourhood Admin & Support,Operational Furniture & Equip,4010,STIHL CHAINSAW LUBRICANT - MIC025,20/04/2018,0000439219,99.00,Revenue,DICK LEIGH,00026534
South Ribble Council,http://statistics.data.gov.uk/doc/local-authority/30UN,Neighbourhood Admin & Support,Operational Furniture & Equip,4010,CHAINSAW CHAIN 16`` - ST36390030067,20/04/2018,0000439219,63.41,Revenue,DICK LEIGH,00026534
South Ribble Council,http://statistics.data.gov.uk/doc/local-authority/30UN,Neighbourhood Admin & Support,Operational Furniture & Equip,4010,CHAINSAW CHAIN FOR 026 SAW 325/62E - ST36390030062,20/04/2018,0000439219,39.07,Revenue,DICK LEIGH,00026534
South Ribble Council,http://statistics.data.gov.uk/doc/local-authority/30UN,Neighbourhood Admin & Support,Operational Furniture & Equip,4010,CHAINSAW CHAIN (25� CHAIN) -,20/04/2018,0000439219,29.66,Revenue,DICK LEIGH,00026534
South Ribble Council,http://statistics.data.gov.uk/doc/local-authority/30UN,Neighbourhood Admin & Support,Operational Furniture & Equip,4010, CHAINSAW CHAIN (28� CHAIN) FOR POLE SAW,20/04/2018,0000439219,25.81,Revenue,DICK LEIGH,00026534
South Ribble Council,http://statistics.data.gov.uk/doc/local-authority/30UN,Neighbourhood Admin & Support,Operational Furniture & Equip,4010,delivery,20/04/2018,0000439219,3.00,Revenue,DICK LEIGH,00026534
South Ribble Council,http://statistics.data.gov.uk/doc/local-authority/30UN,Regeneration,Professional Fees,4510,Project delivery support for environmental education activities,06/04/2018,0000438954,"2,000.00",Revenue,Diggy Sticks Woodland Centre CIC,132519
South Ribble Council,http://statistics.data.gov.uk/doc/local-authority/30UN,Homelessness,Contributions,4730,Disc South Ribble Housing Support April and May 2018,27/04/2018,0000439377,"3,250.00",Revenue,Disc (Developing initiatives supporting communitie,132271
South Ribble Council,http://statistics.data.gov.uk/doc/local-authority/30UN,Housing,Cap Grant- Improve Grants,C570,ARCHITECT FEES FOR PLANS DRAWN FOR NAME REDACTED-ADDRESS REDACTED REMAINDER OF GRANT ,13/04/2018,0000439113,"1,037.00",Revenue,DMA Associates,132374
South Ribble Council,http://statistics.data.gov.uk/doc/local-authority/30UN,Property Services,Rep & Maint Premises,2020,QUOTE REF. Q53134 Rev. 0 Lift ref. 3479 (PASSENGER LIFT) To supply and fit a 8 core trailer from the motor room down the s,11/04/2018,0000439017,713.00,Revenue,E A Foulds Limited,131427
South Ribble Council,http://statistics.data.gov.uk/doc/local-authority/30UN,Information Services,Peripherals,4260,,06/04/2018,0000438910,"2,495.36",Revenue,EE Ltd,131653
South Ribble Council,http://statistics.data.gov.uk/doc/local-authority/30UN,Information Services,Peripherals,4260,non vat,06/04/2018,0000438910,25.75,Revenue,EE Ltd,131653
South Ribble Council,http://statistics.data.gov.uk/doc/local-authority/30UN,Legal,Legal,4821,Application of Political Balance for rules,11/04/2018,0000439089,"1,237.50",Revenue,ERIC OWEN,132110
South Ribble Council,http://statistics.data.gov.uk/doc/local-authority/30UN,Area 2 - Waste Transport/Eastern & Central Teams,Advertising,4842,Garden Waste Permit Production and Posting,11/04/2018,0000438948,"13,450.84",Revenue,Euro Print Labels,132447
South Ribble Council,http://statistics.data.gov.uk/doc/local-authority/30UN,Development Enterprise & Comm Mgnt,Other Misc,485A,Contribution to joint Central Lancashire Business Event 2018 at 750.00,25/04/2018,0000439336,750.00,Revenue,EVENTS NORTHERN LTD,130222
South Ribble Council,http://statistics.data.gov.uk/doc/local-authority/30UN,Information Services,Peripherals,4248,Bank Wizard Contract renewal BW1070b / BW1069a,20/04/2018,0000439237,"3,956.74",Revenue,EXPERIAN LTD,00094045
South Ribble Council,http://statistics.data.gov.uk/doc/local-authority/30UN,Area 2 - Waste Transport/Eastern & Central Teams,External Contractors Charges,4570,Spec Repair YP11 CFM JFC10326,13/04/2018,0000439043,270.00,Revenue,Farid Hillend Engineering Limited,130575
South Ribble Council,http://statistics.data.gov.uk/doc/local-authority/30UN,Revenues Plus,Parish Precepts,4870,parish precept,11/04/2018,0000438932,"50,000.00",Revenue,FARINGTON PARISH COUNCIL,00031105
South Ribble Council,http://statistics.data.gov.uk/doc/local-authority/30UN,Area 2 - Waste Transport/Eastern & Central Teams,External Contractors Charges,4570,ADDITIONAL CLINICAL WASTE MARCH 2018 (ESTIMATE),06/04/2018,0000438956,279.84,Revenue,FCC Environment Services (UK) Ltd,131612
South Ribble Council,http://statistics.data.gov.uk/doc/local-authority/30UN,Area 2 - Waste Transport/Eastern & Central Teams,Balance Sheet,0030,RETENTION,06/04/2018,0000438956,-13.99,Revenue,FCC Environment Services (UK) Ltd,131612
South Ribble Council,http://statistics.data.gov.uk/doc/local-authority/30UN,Area 2 - Waste Transport/Eastern & Central Teams,External Contractors Charges,4570,RESIDUAL WASTE MARCH 2018,18/04/2018,0000438957,"41,598.94",Revenue,FCC Environment Services (UK) Ltd,131612
South Ribble Council,http://statistics.data.gov.uk/doc/local-authority/30UN,Area 2 - Waste Transport/Eastern & Central Teams,External Contractors Charges,4570,DRY RECYCLABLE NON TERRACED MARCH 2018,18/04/2018,0000438957,"42,600.51",Revenue,FCC Environment Services (UK) Ltd,131612
South Ribble Council,http://statistics.data.gov.uk/doc/local-authority/30UN,Area 2 - Waste Transport/Eastern & Central Teams,External Contractors Charges,4570,DRY RECYCLABLE TERRACED MARCH 2018,18/04/2018,0000438957,"2,023.12",Revenue,FCC Environment Services (UK) Ltd,131612
South Ribble Council,http://statistics.data.gov.uk/doc/local-authority/30UN,Area 2 - Waste Transport/Eastern & Central Teams,External Contractors Charges,4570,ORGANIC WASTE NON TERRACED MARCH 2018,18/04/2018,0000438957,"29,527.11",Revenue,FCC Environment Services (UK) Ltd,131612
South Ribble Council,http://statistics.data.gov.uk/doc/local-authority/30UN,Area 2 - Waste Transport/Eastern & Central Teams,External Contractors Charges,4570,SCHEDULE 2 PROPERTIES MARCH 2018,18/04/2018,0000438957,"1,689.25",Revenue,FCC Environment Services (UK) Ltd,131612
South Ribble Council,http://statistics.data.gov.uk/doc/local-authority/30UN,Area 2 - Waste Transport/Eastern & Central Teams,External Contractors Charges,4570,COMMERCIAL WASTE MARCH 2018,18/04/2018,0000438957,"6,617.78",Revenue,FCC Environment Services (UK) Ltd,131612
South Ribble Council,http://statistics.data.gov.uk/doc/local-authority/30UN,Area 2 - Waste Transport/Eastern & Central Teams,External Contractors Charges,4570,BULKY WASTE MARCH 2018,18/04/2018,0000438957,914.85,Revenue,FCC Environment Services (UK) Ltd,131612
South Ribble Council,http://statistics.data.gov.uk/doc/local-authority/30UN,Area 2 - Waste Transport/Eastern & Central Teams,External Contractors Charges,4570,WEEE COLLECTIONS MARCH 2018,18/04/2018,0000438957,342.06,Revenue,FCC Environment Services (UK) Ltd,131612
South Ribble Council,http://statistics.data.gov.uk/doc/local-authority/30UN,Area 2 - Waste Transport/Eastern & Central Teams,External Contractors Charges,4570,CLINICAL WASTE COLLECTIONS MARCH 2018,18/04/2018,0000438957,582.54,Revenue,FCC Environment Services (UK) Ltd,131612
South Ribble Council,http://statistics.data.gov.uk/doc/local-authority/30UN,Area 2 - Waste Transport/Eastern & Central Teams,External Contractors Charges,4570,ADDITIONAL PROPERTIES MARCH 2018,18/04/2018,0000438957,"1,345.35",Revenue,FCC Environment Services (UK) Ltd,131612
South Ribble Council,http://statistics.data.gov.uk/doc/local-authority/30UN,Area 2 - Waste Transport/Eastern & Central Teams,External Contractors Charges,4570,REPLACEMENT BINS MARCH 2018,18/04/2018,0000438957,"5,000.00",Revenue,FCC Environment Services (UK) Ltd,131612
South Ribble Council,http://statistics.data.gov.uk/doc/local-authority/30UN,Area 2 - Waste Transport/Eastern & Central Teams,Balance Sheet,0030,Retention Refuse,18/04/2018,0000438957,"-2,654.54",Revenue,FCC Environment Services (UK) Ltd,131612
South Ribble Council,http://statistics.data.gov.uk/doc/local-authority/30UN,Area 2 - Waste Transport/Eastern & Central Teams,Balance Sheet,0030,retetion recycling,18/04/2018,0000438957,"-3,707.54",Revenue,FCC Environment Services (UK) Ltd,131612
South Ribble Council,http://statistics.data.gov.uk/doc/local-authority/30UN,Area 2 - Waste Transport/Eastern & Central Teams,External Contractors Charges,4570,Planned Inspection of Extraction Equipment In Vehicle Workshop 6 units @ 60.00 per unit,25/04/2018,0000439294,360.00,Revenue,FUMEXLTD,131067
South Ribble Council,http://statistics.data.gov.uk/doc/local-authority/30UN,Regeneration,Other Misc,4861,"RON7  1,476.00 PRICE @ 492.00 EACH Ronda Cast Iron & Timber seat",20/04/2018,0000439080,"1,476.00",Revenue,FURNITUBES INTERNATIONAL LIMITED,131320
South Ribble Council,http://statistics.data.gov.uk/doc/local-authority/30UN,Homelessness,Contributions,4730,cash bond ADDRESS REDACTED - 3 bed flat,11/04/2018,0000439052,650.00,Revenue,GAPP DEVELOPMENTS,130563
South Ribble Council,http://statistics.data.gov.uk/doc/local-authority/30UN,HR & Communications,Training Expense-Course Fees,1403,CMI Level 7 Strategic Management and Leadership course NAMES REDACTED (5 units at 497 each = 2485 per person),13/04/2018,0000438927,"3,976.00",Revenue,Grwp Llandrillo Menai,132364
South Ribble Council,http://statistics.data.gov.uk/doc/local-authority/30UN,Area 2 - Waste Transport/Eastern & Central Teams,Materials General,4040,Filters for stores,11/04/2018,0000438972,396.07,Revenue,H & J SERVICES LTD,00114446
South Ribble Council,http://statistics.data.gov.uk/doc/local-authority/30UN,Housing,Cap Grant- Improve Grants,C570,"DFG WORKS TO PROPERTY AS PER QUOTE AT ADDRESS REDACTED COST WORK 27,653.41 CLIENT CONTRIBUTION",20/04/2018,0000439263,"9,817.80",Revenue,Hall Building Contractors Ltd,131423
South Ribble Council,http://statistics.data.gov.uk/doc/local-authority/30UN,Neighbourhood Admin & Support,Vehicle Running Costs,3132,"15,000 LITRES DIESEL (@96.04 pence per litre)",11/04/2018,0000439044,"14,623.05",Revenue,Hall Fuels trading name of WFL (UK) Ltd,00116758
South Ribble Council,http://statistics.data.gov.uk/doc/local-authority/30UN,Neighbourhood Admin & Support,Vehicle Running Costs,3132,15000Litres Diesel @ 97.77ppl,20/04/2018,0000439267,"12,446.25",Revenue,Hall Fuels trading name of WFL (UK) Ltd,00116758
South Ribble Council,http://statistics.data.gov.uk/doc/local-authority/30UN,Neighbourhood Admin & Support,Vehicle Running Costs,3134,2500litres gas oil @ 52.06 ppl,20/04/2018,0000439272,"1,340.96",Revenue,Hall Fuels trading name of WFL (UK) Ltd,00116758
South Ribble Council,http://statistics.data.gov.uk/doc/local-authority/30UN,Housing,Cap Expend Other,C750,"DFG WORKS TO DOOR, ENTRANCE AND BATHROOM AS PER QUOTE SUPPLIED 50% COST TO BE COVERED BY ACCENT",11/04/2018,0000439088,"5,361.66",Revenue,Hartwell  Property Services LTD,131998
South Ribble Council,http://statistics.data.gov.uk/doc/local-authority/30UN,Environmental Health,Other Misc,4851,FAO: NAME REDACTED  Development of Digital E Guide as per quote 23/08/2017,11/04/2018,0000439018,"1,500.00",Revenue,HECKFORD PRINTING LTD T/A HECKFORD ADVER,00023388
South Ribble Council,http://statistics.data.gov.uk/doc/local-authority/30UN,Information Services,Publications,4142,Subscription Renewal  for 2 copies of  Municipal Journal 24/5/18 to 16/5/19 Subscription No. 490082/19771,25/04/2018,0000439358,280.00,Revenue,HEMMING GROUP LTD,00023867
South Ribble Council,http://statistics.data.gov.uk/doc/local-authority/30UN,Property Services,Rep & Maint Premises,2020,Access Control Addition to the following priority doors site survey February 2018  * A10 Staff Double Door A40 1st Floor Door,27/04/2018,0000439397,"3,430.20",Revenue,HFX LTD,00023728
South Ribble Council,http://statistics.data.gov.uk/doc/local-authority/30UN,Shared Financial Services,Balance Sheet,0140,,11/04/2018,0000438634,314.94,Revenue,HM REVENUE & CUSTOMS,00024837
South Ribble Council,http://statistics.data.gov.uk/doc/local-authority/30UN,Shared Financial Services,Balance Sheet,0140,,11/04/2018,0000438767,392.53,Revenue,HM REVENUE & CUSTOMS,00024837
South Ribble Council,http://statistics.data.gov.uk/doc/local-authority/30UN,Revenues Plus,Stationery,4130,"15,000 white envelopes, self seal C5, green chevron",20/04/2018,0000439260,335.70,Revenue,HOUND ENVELOPES,00113366
South Ribble Council,http://statistics.data.gov.uk/doc/local-authority/30UN,Revenues Plus,Parish Precepts,4870,precept,11/04/2018,0000438933,"22,000.00",Revenue,HUTTON PARISH COUNCIL,00023566
South Ribble Council,http://statistics.data.gov.uk/doc/local-authority/30UN,HR & Communications,Advertising,4848,Farington Park Gym equipment Wednesday 4th April 2018 Pictures to be taken of the ABL Health gym inductions,11/04/2018,0000438995,100.00,Revenue,IAN ROBINSON,132041
South Ribble Council,http://statistics.data.gov.uk/doc/local-authority/30UN,HR & Communications,Advertising,4848,Unveiling of 250 Butterflies at St Catherine`s Park Thursday 5th April 2018,11/04/2018,0000438995,150.00,Revenue,IAN ROBINSON,132041
South Ribble Council,http://statistics.data.gov.uk/doc/local-authority/30UN,Development Enterprise & Comm Mgnt,Other Misc,4851,A day of photography in schools including travel costs  370.00,27/04/2018,0000439288,350.00,Revenue,IAN ROBINSON,132041
South Ribble Council,http://statistics.data.gov.uk/doc/local-authority/30UN,Scrutiny,Subs to Statutory Bodies,4720,SUBSCRIPTION TO LG INFORM PLUS - A PREMIUM INFORMATION SERVICE FOR LOCAL AUTHORITIES,20/04/2018,0000439115,890.00,Revenue,IDEA IMPROVEMENT & DEV AGENCY for LOCAL GOV,00012111
South Ribble Council,http://statistics.data.gov.uk/doc/local-authority/30UN,Revenues Plus,Professional Fees,4510,"RV Finder - Fowler Lane, Farington Moss and BT Exchange, Liverpool Road, Longton",11/04/2018,0000439062,"3,985.00",Revenue,Inform CPI Ltd,131666
South Ribble Council,http://statistics.data.gov.uk/doc/local-authority/30UN,Property Services,Operational Furniture & Equip,4012,"Annual contract July 17 to July 18 for 2 x extreme mats, weekly service @  Moss Side depot, Bison Place, Leyland1 x 150 x 250",06/04/2018,0000438870,"1,422.01",Revenue,INITIAL WASHROOM HYGIENE,00024811
South Ribble Council,http://statistics.data.gov.uk/doc/local-authority/30UN,Information Services,Peripherals,4243,"Enterprise Subscription Agreement Year 3, for period 01/04/18 - 31/03/19",06/04/2018,0000438908,"45,768.27",Revenue,INSIGHT UK,00120744
South Ribble Council,http://statistics.data.gov.uk/doc/local-authority/30UN,Revenues Plus,Professional Fees,4520,Attendance at IRRV Conference,25/04/2018,0000439281,370.00,Revenue,INST OF REVENUES RATING & VALUATION,00024950
South Ribble Council,http://statistics.data.gov.uk/doc/local-authority/30UN,Housing,Cap Grant- Improve Grants,C570,GRANT PAYMENT TOWARDS COST OF SUPPLY INSTALLATION OF EXTERNAL WALL INSULATION TO ADDRESS REDAC,11/04/2018,0000439020,"4,000.00",Revenue,Insulated Homes Ltd,132503
South Ribble Council,http://statistics.data.gov.uk/doc/local-authority/30UN,Housing,Cap Grant- Improve Grants,C570,GRANT PAYMENT TOWARDS COST OF SUPPLY INSTALLATION OF EXTERNAL WALL INSULATION TO ADDRESS REDAC,13/04/2018,0000439102,"4,000.00",Revenue,Insulated Homes Ltd,132503
South Ribble Council,http://statistics.data.gov.uk/doc/local-authority/30UN,Regeneration,Other Misc,4851,"External Partner Contributions to MH:2K (Preston City Council and Preston, Chorley/South Ribble CCGs)",13/04/2018,0000439060,"2,000.00",Revenue,Involve Foundation,132416
South Ribble Council,http://statistics.data.gov.uk/doc/local-authority/30UN,Property Services,Rep & Maint Premises,2020,"Repairs to boilers, derby wing and the bungalow, worden park",11/04/2018,0000439019,287.29,Revenue,JAMES MERCER GROUP LTD,00028587
South Ribble Council,http://statistics.data.gov.uk/doc/local-authority/30UN,Property Services,Rep & Maint Premises,2020,"To attend 4 farmyard cottages, Worden park to replace the boiler pump",18/04/2018,0000439148,305.75,Revenue,JAMES MERCER GROUP LTD,00028587
South Ribble Council,http://statistics.data.gov.uk/doc/local-authority/30UN,HR & Communications,Agency Fees,1121,Work carried out by NAME REDACTED Till end of Contract 2018,06/04/2018,0000438919,"14,040.15",Revenue,Joanne Platt Associates Ltd,132222
South Ribble Council,http://statistics.data.gov.uk/doc/local-authority/30UN,Neighbourhood Admin & Support,Capital Expenditure,C230,108 x 4`` Round tree stakes,11/04/2018,0000439004,437.40,Revenue,JOHN HY MAYOR & SONS LTD,00028176
South Ribble Council,http://statistics.data.gov.uk/doc/local-authority/30UN,Planning,Advertising,4841,Press notices for planning applications 2017/18,11/04/2018,0000439055,594.00,Revenue,JOHNSTON PUBLISHING (NORTH WEST),00011345
South Ribble Council,http://statistics.data.gov.uk/doc/local-authority/30UN,Planning,Advertising,4841,Press notices for planning applications 2018/19,27/04/2018,0000439160,513.00,Revenue,JOHNSTON PUBLISHING (NORTH WEST),00011345
South Ribble Council,http://statistics.data.gov.uk/doc/local-authority/30UN,Planning,Advertising,4841,Press notices for planning applications 2018/19,27/04/2018,0000439402,675.00,Revenue,JOHNSTON PUBLISHING (NORTH WEST),00011345
South Ribble Council,http://statistics.data.gov.uk/doc/local-authority/30UN,Planning,Consultancy Fees,4541,Carry out a review of a viability assessment for the site at Grasmere Avenue - relate to application 07/2018/0278/VAR,06/04/2018,0000438949,"2,100.00",Revenue,Keppie Massie,131948
South Ribble Council,http://statistics.data.gov.uk/doc/local-authority/30UN,Planning,Consultancy Fees,4541,Review of viability assessment for planning application - land at Daub Hall Lane and Gregson Lane 07/2017/4115FUL,25/04/2018,0000439322,"2,650.00",Revenue,Keppie Massie,131948
South Ribble Council,http://statistics.data.gov.uk/doc/local-authority/30UN,Homelessness,Contributions,4730,Contract extension 2 months Housing advice and mediation  April & May 2018,25/04/2018,0000439317,"3,333.00",Revenue,KEY UNLOCKING FUTURES LTD,00098601
South Ribble Council,http://statistics.data.gov.uk/doc/local-authority/30UN,Homelessness,Contributions,4730,6 months pre-tenancy training April - Sept 2018,25/04/2018,0000439318,"2,500.00",Revenue,KEY UNLOCKING FUTURES LTD,00098601
South Ribble Council,http://statistics.data.gov.uk/doc/local-authority/30UN,Area 2 - Waste Transport/Eastern & Central Teams,Waste Disposal Charges,5112,January 2018 - Incineration of Clinical Waste.,13/04/2018,0000439054,522.50,Revenue,LANCASHIRE TEACHING FT,00120715
South Ribble Council,http://statistics.data.gov.uk/doc/local-authority/30UN,Area 3 - Parks/Leyland East West,Grounds Maint Cntrctrs Chgs,4657,300m2 LT3 AMENITY TURF WITHY RYEGRASS TO BE OFFLOADED ON SITE BY SUPPLIER.DELIVERY TO  WITHY GROVE,25/04/2018,0000439319,595.00,Revenue,Lancashire Turf Supplies Ltd,132541
South Ribble Council,http://statistics.data.gov.uk/doc/local-authority/30UN,Housing,Cap Grant- Improve Grants,C570,SUPPLY AND INSTALL STAIRLIFT AT ADDRESS REDACTED AS PER YOUR QUOTE OF - 5977.00,11/04/2018,0000439092,"5,977.00",Revenue,LANCS COUNTY COUNCIL,00041645
South Ribble Council,http://statistics.data.gov.uk/doc/local-authority/30UN,Housing,Cap Expend Other,C750,SUPPLY AND INSTALL  GEBERIT AT ADDRESS REDACTED AS PER YOUR QUOTE 3850.00,11/04/2018,0000439093,"3,850.00",Revenue,LANCS COUNTY COUNCIL,00041645
South Ribble Council,http://statistics.data.gov.uk/doc/local-authority/30UN,Development Enterprise & Comm Mgnt,Advertising,4842,Legal and HOT Fees for Northbrook Site  Total Price 1000,20/04/2018,0000439218,500.00,Revenue,LANCS COUNTY COUNCIL,00041645
South Ribble Council,http://statistics.data.gov.uk/doc/local-authority/30UN,Housing,Cap Expend Other,C750,DFG WORKS TO LCC FOR HOISTING EQUIPMENT ADDRESS REDACTED AS PER QUOTE SUPPLIED BY LCC FOR PRISM,20/04/2018,0000439262,"3,330.17",Revenue,LANCS COUNTY COUNCIL,00041645
South Ribble Council,http://statistics.data.gov.uk/doc/local-authority/30UN,Legal,Other Local Authorities,4530,LAND CHARGES - FEBRUARY 2018,20/04/2018,0000439273,959.00,Revenue,LANCS COUNTY COUNCIL,00041645
South Ribble Council,http://statistics.data.gov.uk/doc/local-authority/30UN,Legal,Other Local Authorities,4530,LAND CHARGES - MARCH 2018,20/04/2018,0000439273,"1,004.50",Revenue,LANCS COUNTY COUNCIL,00041645
South Ribble Council,http://statistics.data.gov.uk/doc/local-authority/30UN,Regeneration,Other Misc,4851,For the work for the ``Longton Online`` project as per the business proposal set out and agreed,27/04/2018,0000438926,"4,100.00",Revenue,Laptopbits Ltd,132476
South Ribble Council,http://statistics.data.gov.uk/doc/local-authority/30UN,Legal,Subs to Statutory Bodies,4720,FULL MEMBERSHIP GROUP FEE - ANNUAL SUBSCRIPTION 1 APRIL 2018 - 31 MARCH 2019,20/04/2018,0000439274,300.00,Revenue,LAWYERS IN LOCAL GOVERMENT,130885
South Ribble Council,http://statistics.data.gov.uk/doc/local-authority/30UN,Legal,Publications,4142,PRINT RENEWAL 5/4/2018 - 4/4/2019 (DL003421/3) OKE,11/04/2018,0000439087,"1,139.00",Revenue,LEXISNEXIS BUTTERWORTHS,00037138
South Ribble Council,http://statistics.data.gov.uk/doc/local-authority/30UN,Scrutiny,Subs to Statutory Bodies,4720,"LGA MEMBERSHIP SUBSCRIPTION, INCLUDING DISCOUNTS FOR 2018 - 2019",25/04/2018,0000439271,"10,450.00",Revenue,LGA (LOCAL GOVERNMENT ASSOCIATION),00042851
South Ribble Council,http://statistics.data.gov.uk/doc/local-authority/30UN,Revenues Plus,Parish Precepts,4870,precepts 2018/19,11/04/2018,0000438934,"22,500.00",Revenue,LITTLE HOOLE PARISH COUNCIL,00026709
South Ribble Council,http://statistics.data.gov.uk/doc/local-authority/30UN,Revenues Plus,Parish Precepts,4870,2018/19,11/04/2018,0000438935,"73,200.00",Revenue,LONGTON PARISH COUNCIL,00026673
South Ribble Council,http://statistics.data.gov.uk/doc/local-authority/30UN,Regeneration,Professional Fees,4510,"Materials to make Butterfly models for Catherine`s Park, Lostock Hall",27/04/2018,0000439227,357.97,Revenue,LOSTOCK HALL ACADEMY,00042521
South Ribble Council,http://statistics.data.gov.uk/doc/local-authority/30UN,Neighbourhood Admin & Support,Materials General,4040,ADDRESS REDACTED,06/04/2018,0000438950,42.00,Revenue,Main Street Signs Ltd,131922
South Ribble Council,http://statistics.data.gov.uk/doc/local-authority/30UN,Neighbourhood Admin & Support,Materials General,4040,ADDRESS REDACTED,06/04/2018,0000438950,59.00,Revenue,Main Street Signs Ltd,131922
South Ribble Council,http://statistics.data.gov.uk/doc/local-authority/30UN,Neighbourhood Admin & Support,Materials General,4040,ADDRESS REDACTED,06/04/2018,0000438950,92.00,Revenue,Main Street Signs Ltd,131922
South Ribble Council,http://statistics.data.gov.uk/doc/local-authority/30UN,Neighbourhood Admin & Support,Materials General,4040,ADDRESS REDACTED,06/04/2018,0000438950,88.00,Revenue,Main Street Signs Ltd,131922
South Ribble Council,http://statistics.data.gov.uk/doc/local-authority/30UN,Neighbourhood Admin & Support,Materials General,4040,ADDRESS REDACTED,06/04/2018,0000438950,42.00,Revenue,Main Street Signs Ltd,131922
South Ribble Council,http://statistics.data.gov.uk/doc/local-authority/30UN,Neighbourhood Admin & Support,Materials General,4040,ADDRESS REDACTED,06/04/2018,0000438950,45.00,Revenue,Main Street Signs Ltd,131922
South Ribble Council,http://statistics.data.gov.uk/doc/local-authority/30UN,Neighbourhood Admin & Support,Materials General,4040,ADDRESS REDACTED,06/04/2018,0000438950,86.00,Revenue,Main Street Signs Ltd,131922
South Ribble Council,http://statistics.data.gov.uk/doc/local-authority/30UN,Neighbourhood Admin & Support,Materials General,4040,ADDRESS REDACTED,06/04/2018,0000438950,84.00,Revenue,Main Street Signs Ltd,131922
South Ribble Council,http://statistics.data.gov.uk/doc/local-authority/30UN,Neighbourhood Admin & Support,Materials General,4040,ADDRESS REDACTED,06/04/2018,0000438950,82.00,Revenue,Main Street Signs Ltd,131922
South Ribble Council,http://statistics.data.gov.uk/doc/local-authority/30UN,Neighbourhood Admin & Support,Materials General,4040,ADDRESS REDACTED,06/04/2018,0000438950,123.00,Revenue,Main Street Signs Ltd,131922
South Ribble Council,http://statistics.data.gov.uk/doc/local-authority/30UN,Neighbourhood Admin & Support,Materials General,4040,ADDRESS REDACTED,06/04/2018,0000438950,123.00,Revenue,Main Street Signs Ltd,131922
South Ribble Council,http://statistics.data.gov.uk/doc/local-authority/30UN,Neighbourhood Admin & Support,Materials General,4040,DELIVERY CHARGE,06/04/2018,0000438950,57.00,Revenue,Main Street Signs Ltd,131922
South Ribble Council,http://statistics.data.gov.uk/doc/local-authority/30UN,Property Services,Rep & Maint Fixed Plant,2035,annual fees (PO raised on wrong ac NAME REDACTED said to force it through & NAME REDACTED will cancel PO),25/04/2018,0000439013,250.00,Revenue,Marlowe Fire & Security,132473
South Ribble Council,http://statistics.data.gov.uk/doc/local-authority/30UN,Property Services,Rep & Maint Fixed Plant,2035,monitoring,25/04/2018,0000439013,350.00,Revenue,Marlowe Fire & Security,132473
South Ribble Council,http://statistics.data.gov.uk/doc/local-authority/30UN,HR & Communications,Professional Fees,4510,Employee support for SMT/Core Managers,06/04/2018,0000438840,"30,483.80",Revenue,MENRVA Limited,132359
South Ribble Council,http://statistics.data.gov.uk/doc/local-authority/30UN,Area 3 - Parks/Leyland East West,External Contractors Charges,4570,4 loads from Marshway Penwortham on Tuesday 27th March 2018 @ 170.00 per load,06/04/2018,0000438940,340.00,Revenue,Michael Alty,132480
South Ribble Council,http://statistics.data.gov.uk/doc/local-authority/30UN,Revenues Plus,Agency Fees,1121,AGENCY STAFF March 2018,11/04/2018,0000438876,952.75,Revenue,MORGAN HUNT PUBLIC SECTOR LTD,00120401
South Ribble Council,http://statistics.data.gov.uk/doc/local-authority/30UN,Revenues Plus,Agency Fees,1121,AGENCY STAFF March 2018,11/04/2018,0000439030,920.56,Revenue,MORGAN HUNT PUBLIC SECTOR LTD,00120401
South Ribble Council,http://statistics.data.gov.uk/doc/local-authority/30UN,Revenues Plus,Agency Fees,1121,AGENCY STAFF April 2018,20/04/2018,0000439224,689.52,Revenue,MORGAN HUNT PUBLIC SECTOR LTD,00120401
South Ribble Council,http://statistics.data.gov.uk/doc/local-authority/30UN,Revenues Plus,Agency Fees,1121,AGENCY STAFF April 2018,25/04/2018,0000439313,981.24,Revenue,MORGAN HUNT PUBLIC SECTOR LTD,00120401
South Ribble Council,http://statistics.data.gov.uk/doc/local-authority/30UN,Area 1 - Penwortham Western Parishes,Professional Fees,4521,PROVISION OF STRAY DOG SERVICE - TO COVER MARCH 2018,06/04/2018,0000438960,281.65,Revenue,MORNINGSIDE KENNELS,00067755
South Ribble Council,http://statistics.data.gov.uk/doc/local-authority/30UN,Development Enterprise & Comm Mgnt,Contributions to Provisions,4862,Purchase of McNamara Medallion for the South Ribble Museum Collection,04/04/2018,0000438855,480.00,Revenue,MR STUART CLEWLOW,131369
South Ribble Council,http://statistics.data.gov.uk/doc/local-authority/30UN,Housing,Cap Grant- Improve Grants,C570,DFG WORKS TO BATHROOM AND RAMP ATADDRESS REDACTED COST 7658.00,20/04/2018,0000439261,"7,658.00",Revenue,MSG Building and Construction Ltd,132375
South Ribble Council,http://statistics.data.gov.uk/doc/local-authority/30UN,Revenues Plus,Parish Precepts,4870,precepts 2018/19,11/04/2018,0000438936,"19,353.00",Revenue,MUCH HOOLE PARISH COUNCIL,00028383
South Ribble Council,http://statistics.data.gov.uk/doc/local-authority/30UN,Information Services,Peripherals,4241,2 x Apple 10.5`` iPad Pro WiFi + Cellular 64GB - Space Grey @ 684.00 each; 2 x Smart Keyboard 149.95 each plus delivery,11/04/2018,0000439029,"1,677.90",Revenue,MYPREMIER LTD,130091
South Ribble Council,http://statistics.data.gov.uk/doc/local-authority/30UN,Information Services,Peripherals,4241,"Dell Latitude 5590 - 15.6``  laptop, extended warranty, Dell Urban case, plus delivery, as per quote 174534-2",13/04/2018,0000439140,865.66,Revenue,MYPREMIER LTD,130091
South Ribble Council,http://statistics.data.gov.uk/doc/local-authority/30UN,Information Services,Peripherals,4241,"Keyboards, Mice, various cables, RAM sticks, Chargers, Stylus, CD-Rs, DVD-Rs, HDD, Pen drives, plus delivery",18/04/2018,0000439186,382.07,Revenue,MYPREMIER LTD,130091
South Ribble Council,http://statistics.data.gov.uk/doc/local-authority/30UN,Information Services,Training Expense-Course Fees,1420,Pluralsight Annual Plus subscription 17/04/18 - 16/04/19,20/04/2018,0000439226,300.00,Revenue,MYPREMIER LTD,130091
South Ribble Council,http://statistics.data.gov.uk/doc/local-authority/30UN,Information Services,Peripherals,4241,"Keyboards, Mice, various cables, RAM sticks, Chargers, Stylus, CD-Rs, DVD-Rs, HDD, Pen drives, as per quote ref. 174388-4",25/04/2018,0000439282,770.75,Revenue,MYPREMIER LTD,130091
South Ribble Council,http://statistics.data.gov.uk/doc/local-authority/30UN,HR & Communications,Professional Fees,4510,PROFESSIONAL CHARGES FOR ADVISING IN RELATION TO A SETTLEMENT FOR NAME REDACTED (CHK/224416-001),06/04/2018,0000438994,250.00,Revenue,NAPTHENS LLP SOLICITORS,00104896
South Ribble Council,http://statistics.data.gov.uk/doc/local-authority/30UN,HR & Communications,Professional Fees,4510,PROFESSIONAL CHARGES FOR ADVISING IN RELATION TO A SETTLEMENT FOR NAME REDACTED ,18/04/2018,0000439117,250.00,Revenue,NAPTHENS LLP SOLICITORS,00104896
South Ribble Council,http://statistics.data.gov.uk/doc/local-authority/30UN,Area 2 - Waste Transport/Eastern & Central Teams,External Contractors Charges,4570,STEAM CLEAN - JFC10145 - VO65KRF,04/04/2018,0000438841,65.00,Revenue,NAYLORS TRANSPORT (LEYLAND) ltd,00114828
South Ribble Council,http://statistics.data.gov.uk/doc/local-authority/30UN,Area 2 - Waste Transport/Eastern & Central Teams,External Contractors Charges,4570,STEAM CLEAN - JFC10146 - VO65KPX,04/04/2018,0000438841,65.00,Revenue,NAYLORS TRANSPORT (LEYLAND) ltd,00114828
South Ribble Council,http://statistics.data.gov.uk/doc/local-authority/30UN,Area 2 - Waste Transport/Eastern & Central Teams,External Contractors Charges,4570,STEAM CLEAN - JFC10147 - VK09AHJ,04/04/2018,0000438841,65.00,Revenue,NAYLORS TRANSPORT (LEYLAND) ltd,00114828
South Ribble Council,http://statistics.data.gov.uk/doc/local-authority/30UN,Area 2 - Waste Transport/Eastern & Central Teams,External Contractors Charges,4570,STEAM CLEAN - JFC10148 - NX58FJZ,04/04/2018,0000438841,65.00,Revenue,NAYLORS TRANSPORT (LEYLAND) ltd,00114828
South Ribble Council,http://statistics.data.gov.uk/doc/local-authority/30UN,Area 2 - Waste Transport/Eastern & Central Teams,External Contractors Charges,4570,STEAM CLEAN - JFC10149 - VN10DKL,04/04/2018,0000438841,75.00,Revenue,NAYLORS TRANSPORT (LEYLAND) ltd,00114828
South Ribble Council,http://statistics.data.gov.uk/doc/local-authority/30UN,Area 2 - Waste Transport/Eastern & Central Teams,External Contractors Charges,4570,STEAM CLEAN - JFC10150 - PJ62UCG,04/04/2018,0000438841,65.00,Revenue,NAYLORS TRANSPORT (LEYLAND) ltd,00114828
South Ribble Council,http://statistics.data.gov.uk/doc/local-authority/30UN,Area 2 - Waste Transport/Eastern & Central Teams,External Contractors Charges,4570,STEAM CLEAN - JFC10151 - VO65KRD,04/04/2018,0000438841,65.00,Revenue,NAYLORS TRANSPORT (LEYLAND) ltd,00114828
South Ribble Council,http://statistics.data.gov.uk/doc/local-authority/30UN,Area 2 - Waste Transport/Eastern & Central Teams,External Contractors Charges,4570,STEAM CLEAN - JFC10152 - VO65KPZ,04/04/2018,0000438841,65.00,Revenue,NAYLORS TRANSPORT (LEYLAND) ltd,00114828
South Ribble Council,http://statistics.data.gov.uk/doc/local-authority/30UN,Area 2 - Waste Transport/Eastern & Central Teams,External Contractors Charges,4570,STEAM CLEAN - JFC10153 - PO13UUM,04/04/2018,0000438841,75.00,Revenue,NAYLORS TRANSPORT (LEYLAND) ltd,00114828
South Ribble Council,http://statistics.data.gov.uk/doc/local-authority/30UN,Area 2 - Waste Transport/Eastern & Central Teams,External Contractors Charges,4570,STEAM CLEAN - JFC10154 - MX04YNL,04/04/2018,0000438841,65.00,Revenue,NAYLORS TRANSPORT (LEYLAND) ltd,00114828
South Ribble Council,http://statistics.data.gov.uk/doc/local-authority/30UN,Area 2 - Waste Transport/Eastern & Central Teams,External Contractors Charges,4570,STEAM CLEAN - JFC10155 - VO65KRE,04/04/2018,0000438841,65.00,Revenue,NAYLORS TRANSPORT (LEYLAND) ltd,00114828
South Ribble Council,http://statistics.data.gov.uk/doc/local-authority/30UN,Property Services,Client Internal Charges,4590,2017 / 2018 fees for the front end loader weekly exchange at Leyland Market,18/04/2018,0000439152,416.00,Revenue,NEALES WASTE MANAGEMENT,130129
South Ribble Council,http://statistics.data.gov.uk/doc/local-authority/30UN,Development Enterprise & Comm Mgnt,Other Misc,485K,Annual Website Licence and hosting costs for Visit Leyland eCMS Licence: 1500  Hosting: 390 Total: 1890 + VAT,20/04/2018,0000439223,"1,890.00",Revenue,NEW MIND INTERNET CONSULTANCY LTD,00083328
South Ribble Council,http://statistics.data.gov.uk/doc/local-authority/30UN,Homelessness,Contractors Charges 5,5313,NPHG void loss April 2017-April 2018,04/04/2018,0000438862,"4,904.93",Revenue,NEW PROGRESS HOUSING ASSOC ref:DNSOU001,00030135
South Ribble Council,http://statistics.data.gov.uk/doc/local-authority/30UN,Homelessness,Professional Fees,4529,NPH temporary accommodation service level agreement,06/04/2018,0000438909,"8,976.71",Revenue,NEW PROGRESS HOUSING ASSOC ref:DNSOU001,00030135
South Ribble Council,http://statistics.data.gov.uk/doc/local-authority/30UN,Environmental Health,Operational Furniture & Equip,4010,250  x IP-2-GLO1 MOGO INTERNAL PLATE DOUBLE SIDED WITH GLO 1 SIDE - PRIVATE HIRE,04/04/2018,0000438854,"1,445.00",Revenue,NEWAUTO LTD T/A MOGO (UK),00081566
South Ribble Council,http://statistics.data.gov.uk/doc/local-authority/30UN,Environmental Health,Operational Furniture & Equip,4010,250 X  IP-2-GLO1 MOGO INTERNAL PLATE DOUBLE SIDED WITH GLO 1 SIDE - HACKNEY CARRIAGE,04/04/2018,0000438854,"1,445.00",Revenue,NEWAUTO LTD T/A MOGO (UK),00081566
South Ribble Council,http://statistics.data.gov.uk/doc/local-authority/30UN,Environmental Health,Operational Furniture & Equip,4010,250 X MP-1  MOGO LICENCE PLATE SET (PRINTED & CLEAR) - HACKNEY CARRIAGE - SMALL FX4,04/04/2018,0000438854,"1,245.00",Revenue,NEWAUTO LTD T/A MOGO (UK),00081566
South Ribble Council,http://statistics.data.gov.uk/doc/local-authority/30UN,Environmental Health,Operational Furniture & Equip,4010,100 X MDSV-1 -  PRIVATE HIRE STICKERS,04/04/2018,0000438854,288.00,Revenue,NEWAUTO LTD T/A MOGO (UK),00081566
South Ribble Council,http://statistics.data.gov.uk/doc/local-authority/30UN,Environmental Health,Operational Furniture & Equip,4010,150 X WP-1 - WINDSCREEN POUCHES,04/04/2018,0000438854,222.00,Revenue,NEWAUTO LTD T/A MOGO (UK),00081566
South Ribble Council,http://statistics.data.gov.uk/doc/local-authority/30UN,Environmental Health,Operational Furniture & Equip,4010,2 BOXES = (100 PER BOX) - 4TV-CM - 4 TO VIEW COMPOSITE LABELS,04/04/2018,0000438854,96.00,Revenue,NEWAUTO LTD T/A MOGO (UK),00081566
South Ribble Council,http://statistics.data.gov.uk/doc/local-authority/30UN,Environmental Health,Operational Furniture & Equip,4010,post & packing,04/04/2018,0000438854,19.90,Revenue,NEWAUTO LTD T/A MOGO (UK),00081566
South Ribble Council,http://statistics.data.gov.uk/doc/local-authority/30UN,Neighbourhood Admin & Support,External Contractors Charges,4570,FUEL PUMP MAINTENANCE CONTRACT 1.3.18 - 28.2.19 (2 X SITE VISITS APRIL & OCTOBER FOR SERVICE CALIBRATION,20/04/2018,0000439222,740.00,Revenue,NIXON PUMPS,130367
South Ribble Council,http://statistics.data.gov.uk/doc/local-authority/30UN,Scrutiny,Training Expense-Course Fees,1406,HALF DAY SCRUTINY SKILLS TRAINING PLUS COUNCILLOR TRAVEL EXPENSES ON 31 OCTOBER 2017,13/04/2018,0000439106,512.80,Revenue,NORTH WEST EMPLOYERS,00029829
South Ribble Council,http://statistics.data.gov.uk/doc/local-authority/30UN,HR & Communications,Training Expense-Course Fees,1405,ORGANISATIONAL DESIGN AND DEVELOPMENT,20/04/2018,0000439116,"9,027.60",Revenue,NORTH WEST EMPLOYERS,00029829
South Ribble Council,http://statistics.data.gov.uk/doc/local-authority/30UN,Area 2 - Waste Transport/Eastern & Central Teams,External Contractors Charges,4570,WINTER SERVICE - JFC9530 - PO16HMX,06/04/2018,0000438877,916.33,Revenue,NORTH WEST MOWERS LTD,130577
South Ribble Council,http://statistics.data.gov.uk/doc/local-authority/30UN,Area 2 - Waste Transport/Eastern & Central Teams,External Contractors Charges,4570,WINTER SERVICE - PO16HMY - JFC9532,13/04/2018,0000438917,"1,690.84",Revenue,NORTH WEST MOWERS LTD,130577
South Ribble Council,http://statistics.data.gov.uk/doc/local-authority/30UN,Area 1 - Penwortham Western Parishes,Professional Fees,4514,Deployment of officers March 2018 (Estimated charge),06/04/2018,0000438912,"1,271.14",Revenue,NSL LTD,00116868
South Ribble Council,http://statistics.data.gov.uk/doc/local-authority/30UN,Area 1 - Penwortham Western Parishes,Other Misc,4855,Cash Collection and Ring-Go Charges March 2018 (estimated charge),06/04/2018,0000438912,466.98,Revenue,NSL LTD,00116868
South Ribble Council,http://statistics.data.gov.uk/doc/local-authority/30UN,Information Services,Capital Expenditure,C234,"Dell R640 Server Options, as per quote dated 08/03/18",11/04/2018,0000438975,"73,372.00",Revenue,NVIRON LTD,00028781
South Ribble Council,http://statistics.data.gov.uk/doc/local-authority/30UN,Information Services,Peripherals,4241,Various cables as per quote dated 23/03/18,27/04/2018,0000439364,820.62,Revenue,NVIRON LTD,00028781
South Ribble Council,http://statistics.data.gov.uk/doc/local-authority/30UN,Planning,Agency Fees,1121,AGENCY STAFF Consultant 3 months at 46p,20/04/2018,0000439235,"7,348.50",Revenue,Park Avenue Recruitment,132388
South Ribble Council,http://statistics.data.gov.uk/doc/local-authority/30UN,Planning,Agency Fees,1121,AGENCY STAFF Consultant 3 months at 46p,20/04/2018,0000439279,"1,725.00",Revenue,Park Avenue Recruitment,132388
South Ribble Council,http://statistics.data.gov.uk/doc/local-authority/30UN,Revenues Plus,Parish Precepts,4870,precept 2018/19,13/04/2018,0000438937,"170,000.00",Revenue,PENWORTHAM TOWN COUNCIL,00031257
South Ribble Council,http://statistics.data.gov.uk/doc/local-authority/30UN,Chief Executive`s Management,Employee Related Insurance,1819,GROUP LIFE ASSURANCE SCHEME RENEWAL (DEPOSIT) - SCHEME NUMBER 8519 COVERING 2018/2019,06/04/2018,0000438897,"6,000.00",Revenue,PHOENIX LIFE LTD,00031532
South Ribble Council,http://statistics.data.gov.uk/doc/local-authority/30UN,Property Services,Operational Furniture & Equip,4012,"2018 / 2019 contract for the provision of sanitary services at Moss Side Depot, Bison Place, Leyland",13/04/2018,0000439132,405.89,Revenue,PHS GROUP PLC,00031309
South Ribble Council,http://statistics.data.gov.uk/doc/local-authority/30UN,Area 2 - Waste Transport/Eastern & Central Teams,Materials General,4040,Engine Oil  85p x 2000 litre PAS 1.05 x 205 litre Red Antifreeze 1.47 x 205 litre 172600/ 4040 NAME REDACTED,13/04/2018,0000439023,"2,223.40",Revenue,PILKINGTON OILS,00113531
South Ribble Council,http://statistics.data.gov.uk/doc/local-authority/30UN,Area 2 - Waste Transport/Eastern & Central Teams,Vehicle Running Costs,3137,,26/04/2018,0000439036,240.00,Revenue,POST OFFICE LTD,00031354
South Ribble Council,http://statistics.data.gov.uk/doc/local-authority/30UN,Area 2 - Waste Transport/Eastern & Central Teams,Vehicle Running Costs,3137,,26/04/2018,0000439036,240.00,Revenue,POST OFFICE LTD,00031354
South Ribble Council,http://statistics.data.gov.uk/doc/local-authority/30UN,Area 2 - Waste Transport/Eastern & Central Teams,Vehicle Running Costs,3137,,26/04/2018,0000439036,240.00,Revenue,POST OFFICE LTD,00031354
South Ribble Council,http://statistics.data.gov.uk/doc/local-authority/30UN,Area 2 - Waste Transport/Eastern & Central Teams,Vehicle Running Costs,3137,,26/04/2018,0000439036,30.00,Revenue,POST OFFICE LTD,00031354
South Ribble Council,http://statistics.data.gov.uk/doc/local-authority/30UN,Information Services,Stationery,4133,"50,000 sheets Evolution Everyday A4 80gm",18/04/2018,0000439137,256.50,Revenue,PREMIER PAPER GROUP LTD,00022606
South Ribble Council,http://statistics.data.gov.uk/doc/local-authority/30UN,Area 2 - Waste Transport/Eastern & Central Teams,Materials General,4040,TYRE REPAIRS - TR185,13/04/2018,0000439118,474.95,Revenue,PRESTON TYRE SPECIALISTS,00109516
South Ribble Council,http://statistics.data.gov.uk/doc/local-authority/30UN,Democratic Services,Printing,4127,"PI REFRESH MAILING - 8,246",20/04/2018,0000439195,"3,577.39",Revenue,PRINT IMAGE NETWORK LTD,00089199
South Ribble Council,http://statistics.data.gov.uk/doc/local-authority/30UN,Area 3 - Parks/Leyland East West,Contract Hire & Lease Costs,3212,HIRE OF TRACKED DUMPER - ON HIRE 12.3.18 FOR 2 WEEKS HIRE,18/04/2018,0000439176,304.00,Revenue,Readyplant Limited,131535
South Ribble Council,http://statistics.data.gov.uk/doc/local-authority/30UN,Area 3 - Parks/Leyland East West,Contract Hire & Lease Costs,3212,HIRE OF EXCAVATOR - TO COVER 1/3/18 TO 31/3/18 HIRE OF 2T DUMPER - TO COVER 1/3/18 TO 6/3/18,20/04/2018,0000439179,762.00,Revenue,Readyplant Limited,131535
South Ribble Council,http://statistics.data.gov.uk/doc/local-authority/30UN,Area 3 - Parks/Leyland East West,Contract Hire & Lease Costs,3212,fuel,20/04/2018,0000439179,7.20,Revenue,Readyplant Limited,131535
South Ribble Council,http://statistics.data.gov.uk/doc/local-authority/30UN,Property Services,Rep & Maint Premises,2020,Water Leak attend Worden Park - and dig out near playground toilets at the edge of the playground Contact NAME REDACTED,18/04/2018,0000439110,480.00,Revenue,RED ROSE BUILDING MAINTENANCE,00085410
South Ribble Council,http://statistics.data.gov.uk/doc/local-authority/30UN,Property Services,Rep & Maint Premises,2020,materials,18/04/2018,0000439110,160.00,Revenue,RED ROSE BUILDING MAINTENANCE,00085410
South Ribble Council,http://statistics.data.gov.uk/doc/local-authority/30UN,Development Enterprise & Comm Mgnt,Other Misc,485A,Rental costs for storage unit for Economic Development  April to Sept 30th  2018  @288.86 + VAT,18/04/2018,0000439185,288.86,Revenue,Red Rose Self Storage Limited,132014
South Ribble Council,http://statistics.data.gov.uk/doc/local-authority/30UN,Housing,Cap Expend Other,C750,DFG WORKS � Cost of through floor lift as per LCC quote at ADDRESS REDACTED Different specification is being completed ,06/04/2018,0000438923,"9,741.00",Revenue,Redman & Bispham Ltd,132465
South Ribble Council,http://statistics.data.gov.uk/doc/local-authority/30UN,Property Services,Energy Costs,2301,Please supply 4000 litres fuel oil to Worden Park PR25 1DJ. Contact NAMES REDACTED for access,18/04/2018,0000439208,"2,640.00",Revenue,RIBBLE FUEL OILS,00047461
South Ribble Council,http://statistics.data.gov.uk/doc/local-authority/30UN,Shared Financial Services,Expenditure not in NCOS,4994,,20/04/2018,0000439249,"2,000.00",Revenue,Ribble Valley Borough Council,131651
South Ribble Council,http://statistics.data.gov.uk/doc/local-authority/30UN,Information Services,Lease Rental Charges,4036,1/1/18 to 31/3/18,18/04/2018,0000439201,600.94,Revenue,RICOH (UK) LTD,00082976
South Ribble Council,http://statistics.data.gov.uk/doc/local-authority/30UN,Information Services,Postage,4295,,20/04/2018,0000439238,279.62,Revenue,ROYAL MAIL GROUP PLC,00033543
South Ribble Council,http://statistics.data.gov.uk/doc/local-authority/30UN,Revenues Plus,Parish Precepts,4870,precept 2018/19,11/04/2018,0000438938,"8,000.00",Revenue,SAMLESBURY & CUERDALE PARISH COUNCIL,00031118
South Ribble Council,http://statistics.data.gov.uk/doc/local-authority/30UN,Property Services,Professional Fees,4510,Fees for the valuation of investment and operational asset portfolios,27/04/2018,0000439254,"10,700.00",Revenue,Sanderson Weatherall LLP,132534
South Ribble Council,http://statistics.data.gov.uk/doc/local-authority/30UN,Property Services,Professional Fees,4510,Fees for the valuation of investment and operational asset portfolios,27/04/2018,0000439255,"8,000.00",Revenue,Sanderson Weatherall LLP,132534
South Ribble Council,http://statistics.data.gov.uk/doc/local-authority/30UN,Area 3 - Parks/Leyland East West,External Contractors Charges,4570,1 no. 33hz CLAMP-ON SONDE,27/04/2018,0000439386,375.00,Revenue,SCANPROBE TECHNIQUES LTD,00035716
South Ribble Council,http://statistics.data.gov.uk/doc/local-authority/30UN,Property Services,Energy Costs,2304,3/3/18 to 3/4/18,18/04/2018,0000439144,"1,903.71",Revenue,SCOTTISH HYDRO ELECTRIC,130051
South Ribble Council,http://statistics.data.gov.uk/doc/local-authority/30UN,Property Services,Energy Costs,2307,CCL,18/04/2018,0000439144,201.24,Revenue,SCOTTISH HYDRO ELECTRIC,130051
South Ribble Council,http://statistics.data.gov.uk/doc/local-authority/30UN,Property Services,Energy Costs,2304,20/12/17 to 23/3/18,18/04/2018,0000439145,608.38,Revenue,SCOTTISH HYDRO ELECTRIC,130051
South Ribble Council,http://statistics.data.gov.uk/doc/local-authority/30UN,Property Services,Energy Costs,2307,CCL,18/04/2018,0000439145,39.11,Revenue,SCOTTISH HYDRO ELECTRIC,130051
South Ribble Council,http://statistics.data.gov.uk/doc/local-authority/30UN,Property Services,Energy Costs,2303,1/3/18 to 31/3/18,25/04/2018,0000439240,948.02,Revenue,SCOTTISH HYDRO ELECTRIC,130051
South Ribble Council,http://statistics.data.gov.uk/doc/local-authority/30UN,Property Services,Energy Costs,2307,CCL,25/04/2018,0000439240,48.52,Revenue,SCOTTISH HYDRO ELECTRIC,130051
South Ribble Council,http://statistics.data.gov.uk/doc/local-authority/30UN,Property Services,Energy Costs,2303,1/3/18 to 31/3/18,25/04/2018,0000439242,482.03,Revenue,SCOTTISH HYDRO ELECTRIC,130051
South Ribble Council,http://statistics.data.gov.uk/doc/local-authority/30UN,Property Services,Energy Costs,2307,CCL,25/04/2018,0000439242,23.79,Revenue,SCOTTISH HYDRO ELECTRIC,130051
South Ribble Council,http://statistics.data.gov.uk/doc/local-authority/30UN,Property Services,Energy Costs,2303,1/3/18 to 31/3/18,25/04/2018,0000439243,"3,380.16",Revenue,SCOTTISH HYDRO ELECTRIC,130051
South Ribble Council,http://statistics.data.gov.uk/doc/local-authority/30UN,Property Services,Energy Costs,2307,CCL,25/04/2018,0000439243,177.07,Revenue,SCOTTISH HYDRO ELECTRIC,130051
South Ribble Council,http://statistics.data.gov.uk/doc/local-authority/30UN,Property Services,Energy Costs,2303,1/3/18 to 31/3/18,25/04/2018,0000439245,"1,813.99",Revenue,SCOTTISH HYDRO ELECTRIC,130051
South Ribble Council,http://statistics.data.gov.uk/doc/local-authority/30UN,Property Services,Energy Costs,2307,ccl,25/04/2018,0000439245,99.65,Revenue,SCOTTISH HYDRO ELECTRIC,130051
South Ribble Council,http://statistics.data.gov.uk/doc/local-authority/30UN,Property Services,Rep & Maint Fixed Plant,2035,"2018 / 2019 annual contract for the monitoring of the CCTV cameras at Moss Side Depot, 81 Bison Place PR26 7QR",27/04/2018,0000439398,"2,609.54",Revenue,Security Monitoring Centres LtdMaion,132551
South Ribble Council,http://statistics.data.gov.uk/doc/local-authority/30UN,Information Services,Professional Fees,4520,Shredding of Confidential Waste 2018/19,13/04/2018,0000439061,443.72,Revenue,SHRED-IT LTD,00109134
South Ribble Council,http://statistics.data.gov.uk/doc/local-authority/30UN,Neighbourhood Admin & Support,Operational Furniture & Equip,4010,HAMMER  14LB SLEDGE - 17697,06/04/2018,0000438883,32.00,Revenue,SPALDINGS,00070849
South Ribble Council,http://statistics.data.gov.uk/doc/local-authority/30UN,Neighbourhood Admin & Support,Operational Furniture & Equip,4010,LANDSCAPE RAKE COMPLETE (18 TOOTH) - 04188,06/04/2018,0000438883,66.00,Revenue,SPALDINGS,00070849
South Ribble Council,http://statistics.data.gov.uk/doc/local-authority/30UN,Neighbourhood Admin & Support,Materials General,4040,HAND WIPES (200 TUB) - WET WIPES - 30008,06/04/2018,0000438883,144.00,Revenue,SPALDINGS,00070849
South Ribble Council,http://statistics.data.gov.uk/doc/local-authority/30UN,Neighbourhood Admin & Support,Operational Furniture & Equip,4010,LITTER PICKER - 27242,06/04/2018,0000438883,561.00,Revenue,SPALDINGS,00070849
South Ribble Council,http://statistics.data.gov.uk/doc/local-authority/30UN,Development Enterprise & Comm Mgnt,Advertising,4842,Website Design and Creation,20/04/2018,0000439266,"2,550.00",Revenue,Sport Connect Ltd,132508
South Ribble Council,http://statistics.data.gov.uk/doc/local-authority/30UN,Regeneration,Other Misc,4851,Catering for volunteer event 28/09/2017,13/04/2018,0000439049,300.00,Revenue,St Catherines Social Enterprise Ltd,132366
South Ribble Council,http://statistics.data.gov.uk/doc/local-authority/30UN,Development Enterprise & Comm Mgnt,Advertising,4842,"Management of Museum Website as per agreement: Six Months Renewal from 1-3-18	440",06/04/2018,0000438964,440.00,Revenue,STEPHEN WATSON,00113557
South Ribble Council,http://statistics.data.gov.uk/doc/local-authority/30UN,Property Services,Rep & Maint Premises,2020,Cleaning products for the Civic Centre,27/04/2018,0000439350,258.80,Revenue,SWIFT KLEEN,00119360
South Ribble Council,http://statistics.data.gov.uk/doc/local-authority/30UN,Property Services,Rep & Maint Premises,2020,Please supply cleaning products for the Civic Centre,27/04/2018,0000439356,300.40,Revenue,System Hygiene Ltd,132495
South Ribble Council,http://statistics.data.gov.uk/doc/local-authority/30UN,Planning,Other Misc,4851,Ecology Advice for Planning at South Ribble,20/04/2018,0000439108,"3,995.00",Revenue,TAMESIDE METROPOLITAN BOROUGH COUNCIL,00037293
South Ribble Council,http://statistics.data.gov.uk/doc/local-authority/30UN,Area 2 - Waste Transport/Eastern & Central Teams,Operational Furniture & Equip,4010,CALIBRATION OF BRAKE TESTER/HEADLAMP AIM TESTER 3 TORQUE WRENCHES,06/04/2018,0000438907,436.50,Revenue,Tecalemit Garage Equipment Company Limited,132135
South Ribble Council,http://statistics.data.gov.uk/doc/local-authority/30UN,Regeneration,Professional Fees,4510,Environmental project support and development,27/04/2018,0000439327,450.00,Revenue,The Bee centre,132104
South Ribble Council,http://statistics.data.gov.uk/doc/local-authority/30UN,Housing,Cap Grant- Improve Grants,C570,Grant payment towards cost of supply and installation of external wall insulation to ADDRESS REDACTED Cost of Grant 4000,06/04/2018,0000438834,"4,000.00",Revenue,Trade Energy,132102
South Ribble Council,http://statistics.data.gov.uk/doc/local-authority/30UN,Housing,Cap Grant- Improve Grants,C570,GRANT PAYMENT TOWARD THE COST OF SUPPLY AND INSTALL EXTERNAL WALL INSULATIO ADDRESS REDACTED,04/04/2018,0000438835,"4,000.00",Revenue,Trade Energy,132102
South Ribble Council,http://statistics.data.gov.uk/doc/local-authority/30UN,Housing,Cap Grant- Improve Grants,C570,Grant payment towards the cost of supply and installation of external wall insulation to ADDRESS REDACTED ,04/04/2018,0000438836,"4,000.00",Revenue,Trade Energy,132102
South Ribble Council,http://statistics.data.gov.uk/doc/local-authority/30UN,Housing,Cap Grant- Improve Grants,C570,Grant payment towards the cost of supply and installation of external wall insulation to ADDRESS REDACTED ,06/04/2018,0000438837,"4,000.00",Revenue,Trade Energy,132102
South Ribble Council,http://statistics.data.gov.uk/doc/local-authority/30UN,Housing,Cap Grant- Improve Grants,C570,GRANT PAYMENT TOWARDS COST OF SUPPLY AND INSTALL OF EXTERNAL WALL INSULATIO ADDRESS REDACTED,06/04/2018,0000438838,"4,000.00",Revenue,Trade Energy,132102
South Ribble Council,http://statistics.data.gov.uk/doc/local-authority/30UN,Housing,Contributions,4730,SUPPLY AND INSTALL UPVC DOUBLE GLAZING AS PART OF THE WINTER WARMTH SCHEMECOST 20000.00,11/04/2018,0000439074,278.00,Revenue,TRADE WINDOWS & CONSERVATORIES,00119823
South Ribble Council,http://statistics.data.gov.uk/doc/local-authority/30UN,Neighbourhood Admin & Support,External Contractors Charges,4570,ELITE STANDARD SUPPORT  Annual Hardware Support 1.6.18 - 31.5.19,27/04/2018,0000439012,843.42,Revenue,TRISCAN SYSTEMS LIMITED,00108339
South Ribble Council,http://statistics.data.gov.uk/doc/local-authority/30UN,Property Services,Rep & Maint Premises,2020,Annual Contract for Maintenance 2018 - 2019  Contract  Number 05541 dated 7.3.2018 Civic Centre,18/04/2018,0000439122,"2,247.20",Revenue,UNIVERSAL COOLING LTD,130914
South Ribble Council,http://statistics.data.gov.uk/doc/local-authority/30UN,Property Services,Rep & Maint Premises,2020,"Annual Contract  for maintenance 2018 - 2019 contract number  05541 dated 7.3.2018 Moss Side Depot",18/04/2018,0000439122,242.40,Revenue,UNIVERSAL COOLING LTD,130914
South Ribble Council,http://statistics.data.gov.uk/doc/local-authority/30UN,Property Services,Rep & Maint Premises,2020,"Annual Contract for maintenance 2018 - 2019 contract number  05541  dated 7.3.2018 Worden Park",18/04/2018,0000439122,242.40,Revenue,UNIVERSAL COOLING LTD,130914
South Ribble Council,http://statistics.data.gov.uk/doc/local-authority/30UN,Property Services,Operational Furniture & Equip,4013,2018 / 2019 contract LCC/2018 for the refrigeration units at the Civic Centre,27/04/2018,0000439391,"1,260.00",Revenue,UNIVERSAL COOLING LTD,130914
South Ribble Council,http://statistics.data.gov.uk/doc/local-authority/30UN,Property Services,Operational Furniture & Equip,4012,Rental fees for coffee machines March 2018,04/04/2018,0000438848,322.09,Revenue,VENDING ENTERPRISES,00101501
South Ribble Council,http://statistics.data.gov.uk/doc/local-authority/30UN,Legal,Agency Fees,1121,Temporary Solicitor for 3 months from 9th January 2018,06/04/2018,0000438843,263.91,Revenue,VENN GROUP LTD,00092762
South Ribble Council,http://statistics.data.gov.uk/doc/local-authority/30UN,Legal,Agency Fees,1121,Temporary Solicitor for 3 months from 9th January 2018,11/04/2018,0000439011,972.30,Revenue,VENN GROUP LTD,00092762
South Ribble Council,http://statistics.data.gov.uk/doc/local-authority/30UN,Legal,Agency Fees,1121,Temporary Solicitor for 3 months from 9th January 2018,20/04/2018,0000439158,458.37,Revenue,VENN GROUP LTD,00092762
South Ribble Council,http://statistics.data.gov.uk/doc/local-authority/30UN,Legal,Agency Fees,1121,Temporary Solicitor for 3 months from 9th January 2018,25/04/2018,0000439291,555.60,Revenue,VENN GROUP LTD,00092762
South Ribble Council,http://statistics.data.gov.uk/doc/local-authority/30UN,Development Enterprise & Comm Mgnt,Other Misc,485K,To produce a Strategic and Operational guidance pack to assist the Cuerden Strategic Site project team with the social valu,06/04/2018,0000438945,"2,200.00",Revenue,Viola Clause Ltd,132515
South Ribble Council,http://statistics.data.gov.uk/doc/local-authority/30UN,Information Services,Peripherals,4247,,06/04/2018,0000438943,"2,449.24",Revenue,VODAFONE RE:CABLE & WIRELESS UK,130810
South Ribble Council,http://statistics.data.gov.uk/doc/local-authority/30UN,Information Services,Processing-Internal,4212,,06/04/2018,0000438962,"3,072.53",Revenue,VODAFONE RE:CABLE & WIRELESS UK,130810
South Ribble Council,http://statistics.data.gov.uk/doc/local-authority/30UN,Information Services,Peripherals,4269,,06/04/2018,0000438977,756.03,Revenue,VODAFONE RE:CABLE & WIRELESS UK,130810
South Ribble Council,http://statistics.data.gov.uk/doc/local-authority/30UN,Information Services,Processing-Internal,4212,,06/04/2018,0000438978,"2,903.48",Revenue,VODAFONE RE:CABLE & WIRELESS UK,130810
South Ribble Council,http://statistics.data.gov.uk/doc/local-authority/30UN,Information Services,Peripherals,4247,,06/04/2018,0000438979,"3,619.11",Revenue,VODAFONE RE:CABLE & WIRELESS UK,130810
South Ribble Council,http://statistics.data.gov.uk/doc/local-authority/30UN,Area 3 - Parks/Leyland East West,Grounds Maint Cntrctrs Chgs,4657,Parts as per attached quote,11/04/2018,0000438963,521.94,Revenue,WICKSTEED LEISURE LTD,00038661
South Ribble Council,http://statistics.data.gov.uk/doc/local-authority/30UN,Area 3 - Parks/Leyland East West,Grounds Maint Cntrctrs Chgs,4657,Carriage,11/04/2018,0000438963,44.36,Revenue,WICKSTEED LEISURE LTD,00038661
South Ribble Council,http://statistics.data.gov.uk/doc/local-authority/30UN,Property Services,Rep & Maint Premises,2020,New replacement soil stack system at Moss Side Depot as per your quotation RE/NE 14.3.18,25/04/2018,0000439253,495.00,Revenue,Wright Build Limited,131203
South Ribble Council,http://statistics.data.gov.uk/doc/local-authority/30UN,Information Services,Peripherals,4241,"2 x Xerox C400DNM printers, as per quote",06/04/2018,0000439001,945.00,Revenue,XERETEC OFFICE SYSTEMS LTD,00109325
South Ribble Council,http://statistics.data.gov.uk/doc/local-authority/30UN,Information Services,Peripherals,4248,ProPrint support & maintenance 01/04/18 - 31/03/19,18/04/2018,0000439156,"2,459.00",Revenue,XLPRINT SOFTWARE,00119658
